fUSD/lending_fUSD_20250504
["ID","MTS","AMOUNT","RATE_DAILY","PERIOD"]
[359788286,1746349803222,-500.0,0.00019873,2]
[359788287,1746349803245,-500.0,0.00019873,2]
[359788288,1746349803267,-514.5719946,0.00019873,2]
[359788289,1746349803291,-500.0,0.00019873,2]
[359788290,1746349803314,-548.63971632,0.00019873,2]
[359788291,1746349803339,-500.99600391,0.00019873,2]
[359788292,1746349803363,-500.0,0.00019873,2]
[359788293,1746349803387,-12500.0,0.00019874,2]
[359788294,1746349803415,-12500.0,0.00019874,2]
[359788295,1746349803442,-264.51314118,0.00019874,2]
[359788296,1746349803467,-2543.4917126,0.00019874,2]
[359788297,1746349803491,-151.0,0.00019876,2]
[359788298,1746349803515,-172.01774,0.00019876,2]
[359788299,1746349803538,-151.0,0.00019876,2]
[359788300,1746349803562,-1189.61347,0.00019876,2]
[359788301,1746349803585,-1189.61347,0.00019876,2]
[359788302,1746349803608,-427.720176,0.00019876,2]
[359788303,1746349803633,-833.843969,0.00019876,2]
[359788304,1746349803658,-427.720176,0.00019876,2]
[359788305,1746349803686,-833.843969,0.00019876,2]
[359788306,1746349803713,-537.509439,0.00019876,2]
[359788307,1746349803743,-537.509439,0.00019876,2]
[359788308,1746349803768,-209.400088,0.00019876,2]
[359788309,1746349803795,-156.103878,0.00019876,2]
[359788310,1746349803821,-151.0,0.00019876,2]
[359788311,1746349803847,-209.400088,0.00019876,2]
[359788312,1746349803874,-156.103878,0.00019876,2]
[359788313,1746349803898,-151.0,0.00019876,2]
[359788314,1746349803925,-17809.27215526,0.00019876,2]
[359788315,1746349803949,-553.82034229,0.00019881,2]
[359788316,1746349804165,-494.87866266,0.00019881,2]
[359788317,1746349804193,-454.65544822,0.00019881,2]
[359788318,1746349804217,-155.097713,0.00019882,2]
[359788319,1746349804242,-537.509439,0.00019882,2]
[359788320,1746349804268,-537.509439,0.00019882,2]
[359788321,1746349804292,-151.0,0.00019882,2]
[359788322,1746349804316,-151.0,0.00019882,2]
[359788323,1746349804341,-12500.0,0.00019882,2]
[359788324,1746349804366,-12500.0,0.00019882,2]
[359788325,1746349804390,-225.0,0.00019884,2]
[359788326,1746349804414,-20685.3517,0.00019884,2]
[359788327,1746349804440,-803.5125,0.00019884,2]
[359788328,1746349804466,-171.79623947,0.00019884,2]
[359788329,1746349804492,-151.0,0.00019884,2]
[359788330,1746349804534,-1189.61347,0.00019884,2]
[359788331,1746349804562,-1189.61347,0.00019884,2]
[359788332,1746349804585,-427.720176,0.00019884,2]
[359788333,1746349804609,-833.843969,0.00019884,2]
[359788334,1746349804639,-427.720176,0.00019884,2]
[359788335,1746349804662,-833.843969,0.00019884,2]
[359788336,1746349804687,-537.509439,0.00019884,2]
[359788337,1746349804712,-537.509439,0.00019884,2]
[359788338,1746349804735,-209.400088,0.00019884,2]
[359788339,1746349804758,-156.103878,0.00019884,2]
[359788340,1746349804780,-151.0,0.00019884,2]
[359788341,1746349804804,-209.400088,0.00019884,2]
[359788342,1746349804852,-156.103878,0.00019884,2]
[359788343,1746349804895,-151.0,0.00019884,2]
[359788344,1746349804934,-6734.6775,0.00019884,2]
[359788345,1746349804959,-165.27,0.00019885,2]
[359788346,1746349804993,-165.27,0.00019885,2]
[359788347,1746349805019,-165.27,0.00019885,2]
[359788348,1746349805058,-165.27,0.00019885,2]
[359788349,1746349805097,-165.27,0.00019885,2]
[359788350,1746349805120,-165.27,0.00019885,2]
[359788351,1746349805144,-165.27,0.00019885,2]
[359788352,1746349805167,-165.27,0.00019885,2]
[359788353,1746349805192,-165.27,0.00019885,2]
[359788354,1746349805215,-165.27,0.00019885,2]
[359788355,1746349805244,-2543.4917126,0.00019887,2]
[359788356,1746349805268,-151.0,0.00019887,2]
[359788357,1746349805291,-190.148114,0.00019887,2]
[359788358,1746349805316,-151.0,0.00019887,2]
[359788359,1746349805343,-166.672181,0.00019887,2]
[359788360,1746349805368,-151.0,0.00019887,2]
[359788361,1746349805394,-209.566834,0.00019887,2]
[359788362,1746349805417,-151.0,0.00019887,2]
[359788363,1746349805444,-209.566834,0.00019887,2]
[359788364,1746349805468,-157.977804,0.00019887,2]
[359788365,1746349805492,-151.0,0.00019887,2]
[359788366,1746349805518,-151.0,0.00019887,2]
[359788367,1746349805543,-151.0,0.00019887,2]
[359788368,1746349805567,-151.0,0.00019887,2]
[359788369,1746349805591,-306.55821,0.00019887,2]
[359788370,1746349805623,-306.55821,0.00019887,2]
[359788371,1746349805648,-1360.617322,0.00019887,2]
[359788372,1746349805672,-1360.617322,0.00019887,2]
[359788373,1746349805696,-153.39378,0.00019887,2]
[359788374,1746349805719,-371.177366,0.00019887,2]
[359788375,1746349805743,-371.177366,0.00019887,2]
[359788376,1746349805768,-206.1,0.00019887,2]
[359788377,1746349805794,-450.0,0.00019887,2]
[359788378,1746349805820,-450.0,0.00019887,2]
[359788379,1746349805845,-179.37,0.00019887,2]
[359788380,1746349805869,-450.0,0.00019887,2]
[359788381,1746349805892,-422.03285678,0.00019887,2]
[359788382,1746349805917,-532.16,0.00019887,2]
[359788383,1746349805941,-297.12,0.00019887,2]
[359788384,1746349805971,-381.13,0.00019887,2]
[359788385,1746349805996,-450.0,0.00019887,2]
[359788386,1746349806020,-450.0,0.00019887,2]
[359788387,1746349806043,-450.0,0.00019887,2]
[359788388,1746349806067,-450.0,0.00019887,2]
[359788389,1746349806091,-494.73,0.00019887,2]
[359788390,1746349806116,-715.28,0.00019887,2]
[359788391,1746349806139,-450.0,0.00019887,2]
[359788392,1746349806162,-450.8842483,0.00019887,2]
[359788393,1746349806185,-4434.95,0.00019887,2]
[359788394,1746349806209,-450.0,0.00019887,2]
[359788395,1746349806232,-450.0,0.00019887,2]
[359788396,1746349806256,-450.0,0.00019887,2]
[359788397,1746349806279,-450.0,0.00019887,2]
[359788398,1746349806304,-450.0,0.00019887,2]
[359788399,1746349806328,-450.0,0.00019887,2]
[359788400,1746349806353,-151.0,0.00019887,2]
[359788401,1746349806377,-1243.61,0.00019887,2]
[359788402,1746349806402,-151.0,0.00019887,2]
[359788403,1746349806426,-549.12456891,0.00019887,2]
[359788404,1746349806450,-591.01821783,0.00019887,2]
[359788405,1746349806475,-3530.675145,0.00019887,2]
[359788406,1746349806500,-171.20750357,0.00019887,2]
[359788407,1746349806526,-340.29081811,0.00019887,2]
[359788408,1746349806549,-281.944741,0.00019887,2]
[359788409,1746349806572,-153.29513429,0.00019887,2]
[359788410,1746349806596,-584.50243109,0.00019887,2]
[359788411,1746349806621,-494.06,0.00019887,2]
[359788412,1746349806658,-176.66136161,0.00019887,2]
[359788413,1746349806685,-3325.02,0.00019887,2]
[359788414,1746349806709,-501.36,0.00019887,2]
[359788415,1746349806733,-681.0,0.00019887,2]
[359788416,1746349806758,-17809.27215526,0.00019888,2]
[359788417,1746349806786,-151.501805,0.00019889,2]
[359788418,1746349806810,-151.0,0.00019889,2]
[359788419,1746349806834,-151.0,0.00019889,2]
[359788420,1746349806859,-581.514003,0.00019889,2]
[359788421,1746349806884,-581.514003,0.00019889,2]
[359788422,1746349806908,-233.55075498,0.0001989,2]
[359788423,1746349806932,-450.0,0.0001989,2]
[359788424,1746349806955,-154.375194,0.0001989,2]
[359788425,1746349806979,-2235.124918,0.0001989,2]
[359788426,1746349807003,-640.39,0.0001989,2]
[359788427,1746349807026,-450.0,0.0001989,2]
[359788428,1746349807050,-450.0,0.0001989,2]
[359788429,1746349807075,-450.0,0.0001989,2]
[359788430,1746349807099,-450.0,0.0001989,2]
[359788431,1746349807123,-623.41,0.0001989,2]
[359788432,1746349807149,-450.0,0.0001989,2]
[359788433,1746349807173,-450.0,0.0001989,2]
[359788434,1746349807201,-557.95,0.0001989,2]
[359788435,1746349807227,-1182.49,0.0001989,2]
[359788436,1746349807251,-1189.61347,0.0001989,2]
[359788437,1746349807276,-793.09,0.0001989,2]
[359788438,1746349807300,-475.26009467,0.0001989,2]
[359788439,1746349807323,-1189.61347,0.0001989,2]
[359788440,1746349807351,-450.0,0.0001989,2]
[359788441,1746349807374,-55731.63,0.0001989,2]
[359788442,1746349807397,-450.0,0.0001989,2]
[359788443,1746349807421,-450.0,0.0001989,2]
[359788444,1746349807446,-450.0,0.0001989,2]
[359788445,1746349807475,-450.0,0.0001989,2]
[359788446,1746349807508,-510.19,0.0001989,2]
[359788447,1746349807546,-450.0,0.0001989,2]
[359788448,1746349807582,-450.0,0.0001989,2]
[359788449,1746349807605,-450.0,0.0001989,2]
[359788450,1746349807631,-450.0,0.0001989,2]
[359788451,1746349807676,-450.0,0.0001989,2]
[359788452,1746349807710,-3200.46946,0.0001989,2]
[359788453,1746349807753,-450.0,0.0001989,2]
[359788454,1746349807781,-2442.67,0.0001989,2]
[359788455,1746349807809,-3325.98,0.0001989,2]
[359788456,1746349807835,-427.720176,0.0001989,2]
[359788457,1746349807859,-450.0,0.0001989,2]
[359788458,1746349807891,-833.843969,0.0001989,2]
[359788459,1746349807914,-427.720176,0.0001989,2]
[359788460,1746349807937,-833.843969,0.0001989,2]
[359788461,1746349807962,-1167.47,0.0001989,2]
[359788462,1746349807985,-450.0,0.0001989,2]
[359788463,1746349808008,-535.8237422,0.0001989,2]
[359788464,1746349808031,-450.0,0.0001989,2]
[359788465,1746349808089,-450.0,0.0001989,2]
[359788466,1746349808118,-450.0,0.0001989,2]
[359788467,1746349808145,-537.509439,0.0001989,2]
[359788468,1746349808171,-613.67,0.0001989,2]
[359788469,1746349808220,-609.73,0.0001989,2]
[359788470,1746349808247,-537.509439,0.0001989,2]
[359788471,1746349808272,-209.400088,0.0001989,2]
[359788472,1746349808295,-156.103878,0.0001989,2]
[359788473,1746349808318,-151.0,0.0001989,2]
[359788474,1746349808373,-698.67,0.0001989,2]
[359788475,1746349808401,-1520.58,0.0001989,2]
[359788476,1746349808431,-209.400088,0.0001989,2]
[359788477,1746349808472,-156.103878,0.0001989,2]
[359788478,1746349808495,-151.0,0.0001989,2]
[359788479,1746349808519,-151.0,0.00019891,2]
[359788480,1746349808541,-151.0,0.00019891,2]
[359788481,1746349808565,-151.0,0.00019891,2]
[359788482,1746349808589,-151.0,0.00019891,2]
[359788483,1746349808612,-289.800919,0.00019891,2]
[359788484,1746349808635,-151.0,0.00019891,2]
[359788485,1746349808658,-151.0,0.00019891,2]
[359788486,1746349808682,-581.514003,0.00019891,2]
[359788487,1746349808705,-581.514003,0.00019891,2]
[359788488,1746349808729,-12500.0,0.00019891,2]
[359788489,1746349808752,-12500.0,0.00019891,2]
[359788490,1746349808775,-151.0,0.00019893,2]
[359788491,1746349808798,-158.985844,0.00019893,2]
[359788492,1746349808821,-164.980668,0.00019893,2]
[359788493,1746349808844,-151.0,0.00019893,2]
[359788494,1746349808866,-151.0,0.00019893,2]
[359788495,1746349809122,-151.0,0.00019893,2]
[359788496,1746349809147,-166.963181,0.00019893,2]
[359788497,1746349809171,-166.963181,0.00019893,2]
[359788498,1746349809195,-151.0,0.00019893,2]
[359788499,1746349809217,-151.0,0.00019893,2]
[359788500,1746349809240,-151.0,0.00019893,2]
[359788501,1746349809262,-151.0,0.00019893,2]
[359788502,1746349809284,-151.0,0.00019893,2]
[359788503,1746349809307,-151.0,0.00019893,2]
[359788504,1746349809329,-151.0,0.00019893,2]
[359788505,1746349809353,-151.0,0.00019893,2]
[359788506,1746349809375,-151.0,0.00019893,2]
[359788507,1746349809398,-581.514003,0.00019893,2]
[359788508,1746349809422,-581.514003,0.00019893,2]
[359788509,1746349809446,-209.566834,0.00019893,2]
[359788510,1746349809468,-151.0,0.00019893,2]
[359788511,1746349809490,-209.566834,0.00019893,2]
[359788512,1746349809514,-151.0,0.00019893,2]
[359788513,1746349809536,-179.351857,0.00019893,2]
[359788514,1746349809558,-152.286598,0.00019893,2]
[359788515,1746349809580,-151.0,0.00019893,2]
[359788516,1746349809603,-151.0,0.00019893,2]
[359788517,1746349809626,-151.0,0.00019893,2]
[359788518,1746349809648,-417.291219,0.00019893,2]
[359788519,1746349809672,-417.291219,0.00019893,2]
[359788520,1746349809696,-1189.61347,0.00019893,2]
[359788521,1746349809718,-1189.61347,0.00019893,2]
[359788522,1746349809741,-427.720176,0.00019893,2]
[359788523,1746349809764,-833.843969,0.00019893,2]
[359788524,1746349809788,-427.720176,0.00019893,2]
[359788525,1746349809811,-833.843969,0.00019893,2]
[359788526,1746349809834,-209.400088,0.00019893,2]
[359788527,1746349809858,-156.103878,0.00019893,2]
[359788528,1746349809881,-209.400088,0.00019893,2]
[359788529,1746349809904,-156.103878,0.00019893,2]
[359788530,1746349809928,-450.0,0.00019894,2]
[359788531,1746349809952,-500.0,0.00019894,2]
[359788532,1746349809974,-500.0,0.00019894,2]
[359788533,1746349809996,-500.0,0.00019894,2]
[359788534,1746349810018,-500.0,0.00019894,2]
[359788535,1746349810041,-362.43,0.00019894,2]
[359788536,1746349810068,-450.0,0.00019894,2]
[359788537,1746349810091,-151.0,0.00019894,2]
[359788538,1746349810114,-165.331906,0.00019894,2]
[359788539,1746349810137,-306.55821,0.00019894,2]
[359788540,1746349810160,-306.55821,0.00019894,2]
[359788541,1746349810183,-450.0,0.00019894,2]
[359788542,1746349810206,-450.0,0.00019894,2]
[359788543,1746349810229,-1360.617322,0.00019894,2]
[359788544,1746349810253,-1360.617322,0.00019894,2]
[359788545,1746349810277,-450.0,0.00019894,2]
[359788546,1746349810300,-782.73,0.00019894,2]
[359788547,1746349810322,-371.177366,0.00019894,2]
[359788548,1746349810347,-481.20053444,0.00019894,2]
[359788549,1746349810370,-371.177366,0.00019894,2]
[359788550,1746349810393,-450.0,0.00019894,2]
[359788551,1746349810416,-505.46,0.00019894,2]
[359788552,1746349810442,-1323.39,0.00019894,2]
[359788553,1746349810465,-450.0,0.00019894,2]
[359788554,1746349810488,-450.0,0.00019894,2]
[359788555,1746349810511,-450.0,0.00019894,2]
[359788556,1746349810533,-450.0,0.00019894,2]
[359788557,1746349810558,-450.0,0.00019894,2]
[359788558,1746349810580,-450.0,0.00019894,2]
[359788559,1746349810604,-450.0,0.00019894,2]
[359788560,1746349810627,-541.64481071,0.00019894,2]
[359788561,1746349810651,-1153.07,0.00019894,2]
[359788562,1746349810676,-597.74508621,0.00019894,2]
[359788563,1746349810700,-450.0,0.00019894,2]
[359788564,1746349810724,-450.0,0.00019894,2]
[359788565,1746349810747,-311.17625872,0.00019894,2]
[359788566,1746349810770,-450.0,0.00019894,2]
[359788567,1746349810793,-450.0,0.00019894,2]
[359788568,1746349810815,-450.0,0.00019894,2]
[359788569,1746349810837,-450.0,0.00019894,2]
[359788570,1746349810860,-348.55322568,0.00019894,2]
[359788571,1746349810883,-450.0,0.00019894,2]
[359788572,1746349810904,-458.05670099,0.00019894,2]
[359788573,1746349810927,-473.61003675,0.00019894,2]
[359788574,1746349810949,-580.0069774,0.00019894,2]
[359788575,1746349810971,-568.87775093,0.00019894,2]
[359788576,1746349810993,-463.93048819,0.00019894,2]
[359788577,1746349811015,-475.20145407,0.00019894,2]
[359788578,1746349811038,-450.0,0.00019894,2]
[359788579,1746349811059,-455.9143708,0.00019894,2]
[359788580,1746349811085,-579.69997295,0.00019894,2]
[359788581,1746349811108,-463.84712962,0.00019894,2]
[359788582,1746349811130,-453.74432698,0.00019894,2]
[359788583,1746349811152,-574.32301663,0.00019894,2]
[359788584,1746349811174,-458.71179777,0.00019894,2]
[359788585,1746349811197,-451.77849546,0.00019894,2]
[359788586,1746349811219,-587.37418284,0.00019894,2]
[359788587,1746349811243,-465.47769947,0.00019894,2]
[359788588,1746349811267,-462.55783858,0.00019894,2]
[359788589,1746349811291,-464.70807508,0.00019894,2]
[359788590,1746349811316,-450.0,0.00019894,2]
[359788591,1746349811340,-461.712272,0.00019894,2]
[359788592,1746349811363,-453.0021178,0.00019894,2]
[359788593,1746349811386,-450.0,0.00019894,2]
[359788594,1746349811410,-450.0,0.00019894,2]
[359788595,1746349811433,-450.0,0.00019894,2]
[359788596,1746349811456,-151.0,0.00019894,2]
[359788597,1746349811478,-559.22055538,0.00019894,2]
[359788598,1746349811502,-487.98452613,0.00019894,2]
[359788599,1746349811524,-151.0,0.00019894,2]
[359788600,1746349811546,-458.70990755,0.00019894,2]
[359788601,1746349811568,-457.61254847,0.00019894,2]
[359788602,1746349811591,-466.68740943,0.00019894,2]
[359788603,1746349811612,-457.45069457,0.00019894,2]
[359788604,1746349811635,-464.85539161,0.00019894,2]
[359788605,1746349811657,-464.59136413,0.00019894,2]
[359788606,1746349811679,-450.0,0.00019894,2]
[359788607,1746349811700,-450.0,0.00019894,2]
[359788608,1746349811723,-464.29188012,0.00019894,2]
[359788609,1746349811745,-461.52698453,0.00019894,2]
[359788610,1746349811767,-517.1957433,0.00019894,2]
[359788611,1746349811790,-459.77877233,0.00019894,2]
[359788612,1746349811813,-537.509439,0.00019894,2]
[359788613,1746349811835,-537.509439,0.00019894,2]
[359788614,1746349811857,-259.06140947,0.00019894,2]
[359788615,1746349811879,-459.47014565,0.00019894,2]
[359788616,1746349811901,-453.68078409,0.00019894,2]
[359788617,1746349811924,-450.0,0.00019894,2]
[359788618,1746349811948,-151.0,0.00019894,2]
[359788619,1746349811970,-461.67914973,0.00019894,2]
[359788620,1746349811994,-151.0,0.00019894,2]
[359788621,1746349812016,-457.20410495,0.00019894,2]
[359788622,1746349812039,-554.48731286,0.00019894,2]
[359788623,1746349812061,-164.326934,0.00019895,2]
[359788624,1746349812085,-151.0,0.00019895,2]
[359788625,1746349812107,-166.963181,0.00019895,2]
[359788626,1746349812130,-166.963181,0.00019895,2]
[359788627,1746349812152,-151.0,0.00019895,2]
[359788628,1746349812175,-161.995722,0.00019895,2]
[359788629,1746349812201,-151.0,0.00019895,2]
[359788630,1746349812224,-151.0,0.00019896,2]
[359788631,1746349812250,-151.0,0.00019896,2]
[359788632,1746349812274,-151.0,0.00019896,2]
[359788633,1746349812299,-209.566834,0.00019896,2]
[359788634,1746349812326,-151.0,0.00019896,2]
[359788635,1746349812353,-209.566834,0.00019896,2]
[359788636,1746349812375,-151.0,0.00019896,2]
[359788637,1746349812399,-151.0,0.00019898,2]
[359788638,1746349812422,-157.997565,0.00019898,2]
[359788639,1746349812447,-151.0,0.00019898,2]
[359788640,1746349812470,-166.963181,0.00019898,2]
[359788641,1746349812493,-166.963181,0.00019898,2]
[359788642,1746349812515,-151.0,0.00019898,2]
[359788643,1746349812538,-151.0,0.00019898,2]
[359788644,1746349812562,-151.0,0.00019898,2]
[359788645,1746349812586,-151.0,0.00019898,2]
[359788646,1746349812608,-151.0,0.00019898,2]
[359788647,1746349812631,-581.514003,0.00019898,2]
[359788648,1746349812653,-581.514003,0.00019898,2]
[359788649,1746349812677,-1189.61347,0.00019898,2]
[359788650,1746349812701,-1189.61347,0.00019898,2]
[359788651,1746349812724,-427.720176,0.00019898,2]
[359788652,1746349812747,-833.843969,0.00019898,2]
[359788653,1746349812771,-427.720176,0.00019898,2]
[359788654,1746349812793,-833.843969,0.00019898,2]
[359788655,1746349812816,-209.400088,0.00019898,2]
[359788656,1746349812838,-156.103878,0.00019898,2]
[359788657,1746349812860,-209.400088,0.00019898,2]
[359788658,1746349812882,-156.103878,0.00019898,2]
[359788659,1746349812904,-439.77062331,0.00019899,2]
[359788660,1746349812927,-1000.0,0.00019899,2]
[359788661,1746349812954,-1000.0,0.00019899,2]
[359788662,1746349812986,-1000.0,0.00019899,2]
[359788663,1746349813021,-1000.0,0.00019899,2]
[359788664,1746349813050,-1000.0,0.00019899,2]
[359788665,1746349813077,-1039.79464487,0.00019899,2]
[359788666,1746349813098,-2000.0,0.000199,2]
[359788667,1746349813122,-200.0,0.000199,2]
[359788668,1746349813144,-1185.31322105,0.000199,2]
[359788669,1746349813190,-12500.0,0.000199,2]
[359788670,1746349813218,-151.0,0.000199,2]
[359788671,1746349813243,-151.0,0.000199,2]
[359788672,1746349813266,-264.51314118,0.000199,2]
[359788673,1746349813288,-151.0,0.000199,2]
[359788674,1746349813484,-156.963311,0.000199,2]
[359788675,1746349813508,-237.314922,0.000199,2]
[359788676,1746349813530,-237.314922,0.000199,2]
[359788677,1746349813552,-397.05117796,0.000199,2]
[359788678,1746349813576,-200.0,0.000199,2]
[359788679,1746349813598,-249.025905,0.000199,2]
[359788680,1746349813620,-249.025905,0.000199,2]
[359788681,1746349813643,-151.0,0.000199,2]
[359788682,1746349813665,-151.0,0.000199,2]
[359788683,1746349813689,-151.0,0.000199,2]
[359788684,1746349813714,-151.0,0.000199,2]
[359788685,1746349813743,-166.963181,0.000199,2]
[359788686,1746349813778,-166.963181,0.000199,2]
[359788687,1746349813821,-151.0,0.000199,2]
[359788688,1746349813855,-151.0,0.000199,2]
[359788689,1746349813877,-151.0,0.000199,2]
[359788690,1746349813930,-151.0,0.000199,2]
[359788691,1746349813962,-295.969551,0.000199,2]
[359788692,1746349813989,-151.0,0.000199,2]
[359788693,1746349814044,-151.0,0.000199,2]
[359788694,1746349814088,-158.436892,0.000199,2]
[359788695,1746349814111,-581.514003,0.000199,2]
[359788696,1746349814134,-581.514003,0.000199,2]
[359788697,1746349814157,-209.566834,0.000199,2]
[359788698,1746349814180,-151.0,0.000199,2]
[359788699,1746349814204,-209.566834,0.000199,2]
[359788700,1746349814226,-151.0,0.000199,2]
[359788701,1746349814248,-200.0,0.000199,2]
[359788702,1746349814271,-306.55821,0.000199,2]
[359788703,1746349814293,-306.55821,0.000199,2]
[359788704,1746349814318,-17809.27215526,0.000199,2]
[359788705,1746349814342,-151.0,0.000199,2]
[359788706,1746349814363,-151.0,0.000199,2]
[359788707,1746349814386,-1360.617322,0.000199,2]
[359788708,1746349814408,-298.164047,0.000199,2]
[359788709,1746349814433,-1360.617322,0.000199,2]
[359788710,1746349814456,-151.0,0.000199,2]
[359788711,1746349814480,-151.0,0.000199,2]
[359788712,1746349814503,-371.177366,0.000199,2]
[359788713,1746349814525,-371.177366,0.000199,2]
[359788714,1746349814549,-417.291219,0.000199,2]
[359788715,1746349814572,-417.291219,0.000199,2]
[359788716,1746349814596,-417.291219,0.000199,2]
[359788717,1746349814618,-417.291219,0.000199,2]
[359788718,1746349814641,-12500.0,0.000199,2]
[359788719,1746349814666,-2543.4917126,0.000199,2]
[359788720,1746349814690,-1189.61347,0.000199,2]
[359788721,1746349814713,-1189.61347,0.000199,2]
[359788722,1746349814736,-197.12537922,0.000199,2]
[359788723,1746349814757,-258.52954641,0.000199,2]
[359788724,1746349814781,-11265.45889519,0.000199,2]
[359788725,1746349814804,-151.0,0.000199,2]
[359788726,1746349814827,-427.720176,0.000199,2]
[359788727,1746349814850,-833.843969,0.000199,2]
[359788728,1746349814875,-151.0,0.000199,2]
[359788729,1746349814899,-427.720176,0.000199,2]
[359788730,1746349814923,-833.843969,0.000199,2]
[359788731,1746349814946,-199.16326472,0.000199,3]
[359788732,1746349814969,-537.509439,0.000199,2]
[359788733,1746349814996,-537.509439,0.000199,2]
[359788734,1746349815020,-537.509439,0.000199,2]
[359788735,1746349815043,-537.509439,0.000199,2]
[359788736,1746349815064,-209.400088,0.000199,2]
[359788737,1746349815088,-156.103878,0.000199,2]
[359788738,1746349815113,-151.0,0.000199,2]
[359788739,1746349815135,-151.0,0.000199,2]
[359788740,1746349815156,-209.400088,0.000199,2]
[359788741,1746349815178,-156.103878,0.000199,2]
[359788742,1746349815200,-151.0,0.000199,2]
[359788743,1746349815223,-151.0,0.000199,2]
[359788744,1746349815245,-6759.0,0.00019944,2]
[359788745,1746349815268,-1300.0,0.00019944,2]
[359788746,1746349815290,-925.0,0.00019944,2]
[359788747,1746349815312,-1208.0,0.00019944,2]
[359788748,1746349815334,-797.0,0.00019944,2]
[359788749,1746349815358,-581.0,0.00019944,2]
[359788750,1746349815380,-915.0,0.00019944,2]
[359788751,1746349815402,-1451.0,0.00019944,2]
[359788752,1746349815425,-550.0,0.00019944,2]
[359788753,1746349815448,-1657.0,0.00019944,2]
[359788754,1746349815471,-189.829983,0.00019944,2]
[359788755,1746349815493,-151.0,0.00019944,2]
[359788756,1746349815517,-288.421696,0.00019944,2]
[359788757,1746349815540,-581.514003,0.00019944,2]
[359788758,1746349815563,-581.514003,0.00019944,2]
[359788759,1746349815587,-209.566834,0.00019944,2]
[359788760,1746349815610,-151.0,0.00019944,2]
[359788761,1746349815633,-209.566834,0.00019944,2]
[359788762,1746349815656,-151.0,0.00019944,2]
[359788763,1746349815681,-1189.61347,0.00019944,2]
[359788764,1746349815705,-1189.61347,0.00019944,2]
[359788765,1746349815729,-427.720176,0.00019944,2]
[359788766,1746349815752,-833.843969,0.00019944,2]
[359788767,1746349815775,-427.720176,0.00019944,2]
[359788768,1746349815798,-833.843969,0.00019944,2]
[359788769,1746349815820,-209.400088,0.00019944,2]
[359788770,1746349815842,-156.103878,0.00019944,2]
[359788771,1746349815864,-209.400088,0.00019944,2]
[359788772,1746349815887,-156.103878,0.00019944,2]
[359788773,1746349815908,-698.0,0.00019945,2]
[359788774,1746349815930,-878.0,0.00019951,2]
[359788775,1746349815953,-878.0,0.00019951,2]
[359788776,1746349815975,-2461.17919551,0.00019954,2]
[359788777,1746349815998,-1000.0,0.0001997,2]
[359788778,1746349816020,-964.0,0.00019973,2]
[359788779,1746349816042,-160.17249924,0.00019973,2]
[359788780,1746349816064,-511.80052561,0.00019973,2]
[359788781,1746349816087,-500.0,0.00019973,2]
[359788782,1746349816110,-500.0,0.00019973,2]
[359788783,1746349816132,-501.31920054,0.00019973,2]
[359788784,1746349816154,-500.0,0.00019973,2]
[359788785,1746349816176,-500.0,0.00019973,2]